[Event "Early-Titled-Tuesday-Blitz-March-12-2024"]
[Site "Chess.com"]
[Date "2024.03.12"]
[Round "8"]
[White "Hamisandwich"]
[Black "LiadCuba"]
[Result "0-1"]
[WhiteElo "2703"]
[BlackElo "2541"]
[TimeControl "180+1"]
[EndTime "9:25:21 PDT"]
[Termination "LiadCuba won by checkmate"]

1. c4 {[%clk 0:02:30.5]} 1... Nf6 {[%clk 0:02:54.3]} 2. g3 {[%clk 0:02:29.6]}
2... e6 {[%clk 0:02:53.3]} 3. Bg2 {[%clk 0:02:29.5]} 3... d5 {[%clk 0:02:53.9]}
4. Nf3 {[%clk 0:02:30.1]} 4... c5 {[%clk 0:02:53.8]} 5. cxd5 {[%clk 0:02:29.9]}
5... exd5 {[%clk 0:02:53.3]} 6. d4 {[%clk 0:02:30]} 6... Nc6 {[%clk 0:02:51.4]}
7. O-O {[%clk 0:02:30.2]} 7... a6 {[%clk 0:02:42.7]} 8. a3 {[%clk 0:02:30.4]}
8... Be6 {[%clk 0:02:37.4]} 9. Bg5 {[%clk 0:02:25.4]} 9... h6 {[%clk 0:02:35.2]}
10. Bf4 {[%clk 0:02:21.5]} 10... Rc8 {[%clk 0:02:30.1]} 11. Nc3 {[%clk
0:02:21.4]} 11... c4 {[%clk 0:02:12.4]} 12. Ne5 {[%clk 0:02:20]} 12... Bd6
{[%clk 0:02:10.9]} 13. Nxc6 {[%clk 0:02:17.3]} 13... bxc6 {[%clk 0:02:08.8]} 14.
Qa4 {[%clk 0:02:09.6]} 14... Bxf4 {[%clk 0:02:06.4]} 15. gxf4 {[%clk 0:02:10.5]}
15... Qb6 {[%clk 0:01:56.9]} 16. Rab1 {[%clk 0:02:10.7]} 16... O-O {[%clk
0:01:50.8]} 17. e3 {[%clk 0:02:10.5]} 17... Bf5 {[%clk 0:01:45]} 18. Rbc1 {[%clk
0:02:05.7]} 18... Qxb2 {[%clk 0:01:19.4]} 19. Qxa6 {[%clk 0:02:05.4]} 19... Bd3
{[%clk 0:01:19.6]} 20. Rfe1 {[%clk 0:02:05.4]} 20... Ng4 {[%clk 0:01:19.4]} 21.
Qa5 {[%clk 0:00:28.6]} 21... Qxf2+ {[%clk 0:01:16.9]} 22. Kh1 {[%clk 0:00:29.2]}
22... Nxe3 {[%clk 0:01:15.7]} 23. Rg1 {[%clk 0:00:29.2]} 23... Qxf4 {[%clk
0:01:04.9]} 24. Na4 {[%clk 0:00:14.2]} 24... Ng4 {[%clk 0:01:03.9]} 25. h3
{[%clk 0:00:12.1]} 25... Nf2# {[%clk 0:01:03.1]} 0-1

[Event "Early-Titled-Tuesday-Blitz-March-12-2024"]
[Site "Chess.com"]
[Date "2024.03.12"]
[Round "8"]
[White "Veleamater"]
[Black "secrethawk1"]
[Result "1-0"]
[WhiteElo "2322"]
[BlackElo "2456"]
[TimeControl "180+1"]
[EndTime "9:25:23 PDT"]
[Termination "Veleamater won by checkmate"]

1. g3 {[%clk 0:03:00.9]} 1... Nf6 {[%clk 0:02:58.4]} 2. Bg2 {[%clk 0:03:01.8]}
2... d5 {[%clk 0:02:58.5]} 3. d3 {[%clk 0:03:02.4]} 3... Bf5 {[%clk 0:02:56.7]}
4. Nf3 {[%clk 0:03:02.7]} 4... e6 {[%clk 0:02:56.9]} 5. O-O {[%clk 0:03:03.2]}
5... Be7 {[%clk 0:02:56.2]} 6. Nc3 {[%clk 0:03:03.8]} 6... O-O {[%clk
0:02:55.8]} 7. h3 {[%clk 0:03:02.6]} 7... c6 {[%clk 0:02:52.6]} 8. Ne5 {[%clk
0:03:02.6]} 8... Nbd7 {[%clk 0:02:52.2]} 9. Nxd7 {[%clk 0:03:02.3]} 9... Qxd7
{[%clk 0:02:51.9]} 10. e4 {[%clk 0:03:03.2]} 10... Bg6 {[%clk 0:02:50.8]} 11. f4
{[%clk 0:03:02.9]} 11... h6 {[%clk 0:02:49.9]} 12. g4 {[%clk 0:03:03.1]} 12...
b5 {[%clk 0:02:47.4]} 13. f5 {[%clk 0:03:03.3]} 13... exf5 {[%clk 0:02:46.9]}
14. exf5 {[%clk 0:03:03.4]} 14... Bh7 {[%clk 0:02:46.6]} 15. Ne2 {[%clk
0:03:02.5]} 15... Rfe8 {[%clk 0:02:45.4]} 16. Ng3 {[%clk 0:03:02.2]} 16... Bd6
{[%clk 0:02:44.1]} 17. Qf3 {[%clk 0:02:50.3]} 17... Re7 {[%clk 0:02:38.6]} 18.
h4 {[%clk 0:02:49.4]} 18... Qc7 {[%clk 0:02:32]} 19. g5 {[%clk 0:02:37.1]} 19...
hxg5 {[%clk 0:02:13.1]} 20. hxg5 {[%clk 0:02:33]} 20... Bxg3 {[%clk 0:02:11.7]}
21. gxf6 {[%clk 0:02:32.9]} 21... gxf6 {[%clk 0:02:09]} 22. Bh6 {[%clk
0:02:30.4]} 22... Kh8 {[%clk 0:02:06.7]} 23. Qg4 {[%clk 0:02:23.8]} 23... Rg8
{[%clk 0:02:05]} 24. Qh5 {[%clk 0:02:20.9]} 24... Be5 {[%clk 0:01:53]} 25. c3
{[%clk 0:02:17]} 25... d4 {[%clk 0:01:41.2]} 26. Rf3 {[%clk 0:02:12.4]} 26...
dxc3 {[%clk 0:01:30.7]} 27. bxc3 {[%clk 0:01:58.9]} 27... Bxc3 {[%clk
0:01:24.4]} 28. Raf1 {[%clk 0:01:52.8]} 28... Re2 {[%clk 0:01:09.8]} 29. R1f2
{[%clk 0:01:40.3]} 29... Re1+ {[%clk 0:00:50.8]} 30. Rf1 {[%clk 0:01:31.8]}
30... Re2 {[%clk 0:00:50.5]} 31. R1f2 {[%clk 0:01:20.7]} 31... Bd4 {[%clk
0:00:48.7]} 32. Bf4 {[%clk 0:01:15]} 32... Rxf2 {[%clk 0:00:36.9]} 33. Qxh7+
{[%clk 0:01:08.3]} 33... Kxh7 {[%clk 0:00:30.4]} 34. Rh3+ {[%clk 0:01:06.7]}
34... Kg7 {[%clk 0:00:31]} 35. Bh6+ {[%clk 0:01:06]} 35... Kh7 {[%clk
0:00:31.4]} 36. Bf8# {[%clk 0:01:05.7]} 1-0

[Event "Early-Titled-Tuesday-Blitz-March-12-2024"]
[Site "Chess.com"]
[Date "2024.03.12"]
[Round "8"]
[White "only_strong_moves"]
[Black "kidagent"]
[Result "0-1"]
[WhiteElo "2524"]
[BlackElo "2346"]
[TimeControl "180+1"]
[EndTime "9:25:35 PDT"]
[Termination "kidagent won by resignation"]

1. e4 {[%clk 0:03:00.9]} 1... c6 {[%clk 0:02:59.8]} 2. d4 {[%clk 0:02:59.7]}
2... d5 {[%clk 0:03:00.4]} 3. Nc3 {[%clk 0:03:00.3]} 3... dxe4 {[%clk
0:03:00.2]} 4. Nxe4 {[%clk 0:03:01.2]} 4... Bf5 {[%clk 0:03:00.1]} 5. Ng3 {[%clk
0:03:00.8]} 5... Bg6 {[%clk 0:03:00.5]} 6. h4 {[%clk 0:03:01.5]} 6... h6 {[%clk
0:03:00.2]} 7. h5 {[%clk 0:03:00.9]} 7... Bh7 {[%clk 0:03:00.3]} 8. Nf3 {[%clk
0:03:01.8]} 8... Nd7 {[%clk 0:02:59.6]} 9. Bd3 {[%clk 0:03:01.8]} 9... Bxd3
{[%clk 0:02:59]} 10. Qxd3 {[%clk 0:03:02.7]} 10... e6 {[%clk 0:02:59.4]} 11. Bd2
{[%clk 0:03:02.5]} 11... Ngf6 {[%clk 0:02:59]} 12. O-O-O {[%clk 0:03:02.9]}
12... Qc7 {[%clk 0:02:58.9]} 13. Rhe1 {[%clk 0:03:01.6]} 13... Bd6 {[%clk
0:02:57.4]} 14. Nf5 {[%clk 0:03:01.3]} 14... Bf8 {[%clk 0:02:43.8]} 15. Ng3
{[%clk 0:02:58.7]} 15... Be7 {[%clk 0:02:39.5]} 16. Ne5 {[%clk 0:02:56.5]} 16...
O-O {[%clk 0:02:32]} 17. f4 {[%clk 0:02:52.3]} 17... c5 {[%clk 0:02:28.9]} 18.
Bc3 {[%clk 0:02:48.6]} 18... Rad8 {[%clk 0:02:25.5]} 19. f5 {[%clk 0:02:44.8]}
19... Nxe5 {[%clk 0:02:01.9]} 20. Rxe5 {[%clk 0:02:45.7]} 20... Bd6 {[%clk
0:01:48.6]} 21. Re3 {[%clk 0:02:29.4]} 21... Bf4 {[%clk 0:01:47.5]} 22. fxe6
{[%clk 0:02:17.9]} 22... Nd5 {[%clk 0:01:36.6]} 23. Bd2 {[%clk 0:02:17.4]} 23...
c4 {[%clk 0:01:25.3]} 24. Qe4 {[%clk 0:02:09.4]} 24... Nxe3 {[%clk 0:01:19.4]}
25. Bxe3 {[%clk 0:02:05.9]} 25... Bxg3 {[%clk 0:01:19.1]} 26. e7 {[%clk
0:02:06.2]} 26... Rde8 {[%clk 0:01:14.1]} 27. exf8=Q+ {[%clk 0:02:04.4]} 27...
Kxf8 {[%clk 0:01:14.4]} 28. Qf3 {[%clk 0:02:03.9]} 28... Rxe3 {[%clk 0:01:13.1]}
29. Qf5 {[%clk 0:02:02.5]} 29... Qf4 {[%clk 0:01:08.7]} 30. Qc5+ {[%clk
0:02:02.4]} 30... Kg8 {[%clk 0:01:06.5]} 31. Kb1 {[%clk 0:02:01.7]} 31... Qc7
{[%clk 0:00:59]} 32. Qf5 {[%clk 0:01:57.6]} 32... c3 {[%clk 0:00:54.7]} 33. d5
{[%clk 0:01:57.2]} 33... Bd6 {[%clk 0:00:46.8]} 34. Qf2 {[%clk 0:01:56]} 34...
Qb6 {[%clk 0:00:39.7]} 35. b3 {[%clk 0:01:53.8]} 35... Re5 {[%clk 0:00:36.3]}
36. Qf3 {[%clk 0:01:45]} 36... Qa5 {[%clk 0:00:33.6]} 37. g4 {[%clk 0:01:39.6]}
37... b5 {[%clk 0:00:26.1]} 38. g5 {[%clk 0:01:39.8]} 38... Rxg5 {[%clk
0:00:25]} 39. Rf1 {[%clk 0:01:39.3]} 39... f6 {[%clk 0:00:24.4]} 40. Re1 {[%clk
0:01:39.3]} 40... Re5 {[%clk 0:00:23.7]} 41. Rg1 {[%clk 0:01:36.3]} 41... Be7
{[%clk 0:00:18.1]} 42. Qg4 {[%clk 0:01:36.4]} 42... Bf8 {[%clk 0:00:15.8]} 43.
Qe6+ {[%clk 0:01:37]} 43... Rxe6 {[%clk 0:00:15.8]} 44. dxe6 {[%clk 0:01:37.9]}
44... Qb6 {[%clk 0:00:15.6]} 45. Re1 {[%clk 0:01:37.8]} 45... Be7 {[%clk
0:00:15.7]} 46. Rd1 {[%clk 0:01:37.3]} 46... b4 {[%clk 0:00:15.9]} 47. Rd7
{[%clk 0:01:37.4]} 47... Qg1+ {[%clk 0:00:15.5]} 0-1

[Event "Early-Titled-Tuesday-Blitz-March-12-2024"]
[Site "Chess.com"]
[Date "2024.03.12"]
[Round "8"]
[White "Allion2017"]
[Black "UnTucopalaTimba"]
[Result "0-1"]
[WhiteElo "2289"]
[BlackElo "2007"]
[TimeControl "180+1"]
[EndTime "9:25:42 PDT"]
[Termination "UnTucopalaTimba won by resignation"]

1. d4 {[%clk 0:03:00.9]} 1... Nf6 {[%clk 0:02:59.7]} 2. c4 {[%clk 0:03:00.4]}
2... e6 {[%clk 0:02:58.5]} 3. Nc3 {[%clk 0:03:00.8]} 3... Bb4 {[%clk 0:02:57.6]}
4. e3 {[%clk 0:03:01.4]} 4... O-O {[%clk 0:02:56.8]} 5. Bd3 {[%clk 0:03:00.9]}
5... d5 {[%clk 0:02:54.9]} 6. Nf3 {[%clk 0:03:01.2]} 6... c5 {[%clk 0:02:51.1]}
7. O-O {[%clk 0:03:00.6]} 7... dxc4 {[%clk 0:02:45.5]} 8. Bxc4 {[%clk
0:03:00.1]} 8... Nc6 {[%clk 0:02:45]} 9. a3 {[%clk 0:02:52.8]} 9... Bxc3 {[%clk
0:02:44.8]} 10. bxc3 {[%clk 0:02:53.2]} 10... Qc7 {[%clk 0:02:44.9]} 11. Qe2
{[%clk 0:02:53]} 11... Bd7 {[%clk 0:02:29.1]} 12. Bb2 {[%clk 0:02:49.6]} 12...
Na5 {[%clk 0:02:23.7]} 13. Ba2 {[%clk 0:02:48.3]} 13... b6 {[%clk 0:02:17.9]}
14. e4 {[%clk 0:02:45.7]} 14... Bc6 {[%clk 0:02:16.2]} 15. Nd2 {[%clk
0:02:37.2]} 15... e5 {[%clk 0:02:05.7]} 16. Rac1 {[%clk 0:02:33.2]} 16... Rfe8
{[%clk 0:01:55.2]} 17. dxc5 {[%clk 0:01:52.5]} 17... bxc5 {[%clk 0:01:50.4]} 18.
f3 {[%clk 0:01:52.5]} 18... Rab8 {[%clk 0:01:45]} 19. Ba1 {[%clk 0:01:50.8]}
19... Bb5 {[%clk 0:01:40.8]} 20. c4 {[%clk 0:01:45.6]} 20... Bc6 {[%clk
0:01:39.7]} 21. f4 {[%clk 0:01:44.6]} 21... exf4 {[%clk 0:01:30.9]} 22. Bxf6
{[%clk 0:01:41.3]} 22... gxf6 {[%clk 0:01:29.4]} 23. Qg4+ {[%clk 0:01:37.8]}
23... Kh8 {[%clk 0:01:28.8]} 24. Rxf4 {[%clk 0:01:37.5]} 24... Qe5 {[%clk
0:01:26.2]} 25. Nf3 {[%clk 0:01:32.1]} 25... Qe6 {[%clk 0:01:22.1]} 26. Qh5
{[%clk 0:01:31.4]} 26... Rg8 {[%clk 0:01:14.6]} 27. Bb1 {[%clk 0:01:25.3]} 27...
Rg7 {[%clk 0:00:59.7]} 28. Rf1 {[%clk 0:01:21.4]} 28... Nxc4 {[%clk 0:00:53.7]}
29. Nh4 {[%clk 0:01:19.6]} 29... Qe5 {[%clk 0:00:44.8]} 30. Nf5 {[%clk
0:01:18.9]} 30... Rg5 {[%clk 0:00:37.9]} 31. Qxf7 {[%clk 0:01:13.7]} 31... Ne3
{[%clk 0:00:29.4]} 32. R1f2 {[%clk 0:01:04.7]} 32... Rxb1+ {[%clk 0:00:27]} 0-1

[Event "Early-Titled-Tuesday-Blitz-March-12-2024"]
[Site "Chess.com"]
[Date "2024.03.12"]
[Round "8"]
[White "platy3"]
[Black "Flawless_Fighter"]
[Result "1-0"]
[WhiteElo "2960"]
[BlackElo "2849"]
[TimeControl "180+1"]
[EndTime "9:25:45 PDT"]
[Termination "platy3 won on time"]

1. e4 {[%clk 0:02:55.7]} 1... c5 {[%clk 0:02:58.6]} 2. Nf3 {[%clk 0:02:54]} 2...
d6 {[%clk 0:02:34.8]} 3. d4 {[%clk 0:02:54]} 3... cxd4 {[%clk 0:02:35.7]} 4.
Nxd4 {[%clk 0:02:54.6]} 4... Nf6 {[%clk 0:02:35.9]} 5. Nc3 {[%clk 0:02:55.2]}
5... a6 {[%clk 0:02:36.6]} 6. Bd3 {[%clk 0:02:55]} 6... g6 {[%clk 0:02:33.8]} 7.
f3 {[%clk 0:02:54.5]} 7... Bg7 {[%clk 0:02:32.8]} 8. Be3 {[%clk 0:02:54.1]} 8...
Nbd7 {[%clk 0:02:32.9]} 9. Qd2 {[%clk 0:02:54]} 9... b5 {[%clk 0:02:32.1]} 10.
O-O-O {[%clk 0:02:53.9]} 10... Bb7 {[%clk 0:02:30.8]} 11. Bh6 {[%clk 0:02:48.7]}
11... Bxh6 {[%clk 0:02:08.2]} 12. Qxh6 {[%clk 0:02:47.8]} 12... b4 {[%clk
0:02:08.8]} 13. Nd5 {[%clk 0:02:43.2]} 13... Nxd5 {[%clk 0:01:58.6]} 14. exd5
{[%clk 0:02:44.1]} 14... Bxd5 {[%clk 0:01:54.5]} 15. Qg7 {[%clk 0:02:30.2]}
15... Rf8 {[%clk 0:01:52.8]} 16. Rhe1 {[%clk 0:02:29.9]} 16... Qa5 {[%clk
0:01:44.6]} 17. Be4 {[%clk 0:01:51.8]} 17... O-O-O {[%clk 0:01:21.1]} 18. Bxd5
{[%clk 0:01:36.9]} 18... Qxd5 {[%clk 0:01:22]} 19. Ne6 {[%clk 0:01:35.7]} 19...
Qxa2 {[%clk 0:01:12.4]} 20. Nxf8 {[%clk 0:01:35.4]} 20... Rxf8 {[%clk
0:00:43.4]} 21. Rxe7 {[%clk 0:01:34.9]} 21... Rd8 {[%clk 0:00:40.9]} 22. Rxd6
{[%clk 0:01:16.6]} 22... Qa1+ {[%clk 0:00:33.4]} 23. Kd2 {[%clk 0:01:16.4]}
23... Qa5 {[%clk 0:00:29.2]} 24. h4 {[%clk 0:01:01.5]} 24... Nc5 {[%clk
0:00:04.6]} 25. Qd4 {[%clk 0:00:55.3]} 25... b3+ {[%clk 0:00:03.1]} 26. c3
{[%clk 0:00:53.4]} 26... Rxd6 {[%clk 0:00:02.5]} 27. Qxd6 {[%clk 0:00:54.3]} 1-0

[Event "Early-Titled-Tuesday-Blitz-March-12-2024"]
[Site "Chess.com"]
[Date "2024.03.12"]
[Round "8"]
[White "WilsonPalencia21"]
[Black "Misterfox120"]
[Result "1-0"]
[WhiteElo "2562"]
[BlackElo "2397"]
[TimeControl "180+1"]
[EndTime "9:25:51 PDT"]
[Termination "WilsonPalencia21 won on time"]

1. d4 {[%clk 0:02:58.3]} 1... d5 {[%clk 0:02:58.8]} 2. c4 {[%clk 0:02:56.9]}
2... e6 {[%clk 0:02:58.3]} 3. Nf3 {[%clk 0:02:54.9]} 3... a6 {[%clk 0:02:58.5]}
4. cxd5 {[%clk 0:02:53.4]} 4... exd5 {[%clk 0:02:59.4]} 5. Nc3 {[%clk 0:02:54]}
5... c6 {[%clk 0:02:58.6]} 6. Bg5 {[%clk 0:02:53]} 6... Be7 {[%clk 0:02:51.8]}
7. Bxe7 {[%clk 0:02:47.3]} 7... Nxe7 {[%clk 0:02:52.7]} 8. Qc2 {[%clk
0:02:47.1]} 8... O-O {[%clk 0:02:49.4]} 9. e3 {[%clk 0:02:47.2]} 9... Bf5 {[%clk
0:02:49.5]} 10. Qb3 {[%clk 0:02:47.3]} 10... Qc8 {[%clk 0:02:28.8]} 11. h3
{[%clk 0:02:44]} 11... Nd7 {[%clk 0:02:27.9]} 12. Be2 {[%clk 0:02:42.4]} 12...
Nf6 {[%clk 0:02:26.3]} 13. Ne5 {[%clk 0:02:40.5]} 13... Ng6 {[%clk 0:02:21.5]}
14. Na4 {[%clk 0:02:27.9]} 14... Qc7 {[%clk 0:02:10.3]} 15. g4 {[%clk
0:02:18.6]} 15... Be6 {[%clk 0:01:59.3]} 16. f4 {[%clk 0:02:10.4]} 16... Nxe5
{[%clk 0:01:57.2]} 17. dxe5 {[%clk 0:02:07.2]} 17... Ne4 {[%clk 0:01:54.1]} 18.
Bf3 {[%clk 0:02:07.3]} 18... f5 {[%clk 0:01:31.8]} 19. Bxe4 {[%clk 0:02:02.4]}
19... fxe4 {[%clk 0:01:30.4]} 20. O-O-O {[%clk 0:01:53.6]} 20... Bf7 {[%clk
0:01:22.7]} 21. Qb6 {[%clk 0:01:48.9]} 21... Qxb6 {[%clk 0:01:03.9]} 22. Nxb6
{[%clk 0:01:48.3]} 22... Rad8 {[%clk 0:01:02.6]} 23. f5 {[%clk 0:01:47.7]} 23...
g6 {[%clk 0:00:58]} 24. Rdf1 {[%clk 0:01:36.8]} 24... Be8 {[%clk 0:00:11.3]} 25.
e6 {[%clk 0:01:31]} 25... Rf6 {[%clk 0:00:10.9]} 26. Rhg1 {[%clk 0:01:27.3]}
26... Kg7 {[%clk 0:00:03.1]} 27. h4 {[%clk 0:01:12.3]} 27... c5 {[%clk
0:00:01.7]} 28. h5 {[%clk 0:01:07.5]} 28... Rd6 {[%clk 0:00:01.1]} 29. Nc8
{[%clk 0:01:04.5]} 1-0

[Event "Early-Titled-Tuesday-Blitz-March-12-2024"]
[Site "Chess.com"]
[Date "2024.03.12"]
[Round "8"]
[White "Kotlyar_K"]
[Black "JaackCamel"]
[Result "0-1"]
[WhiteElo "2564"]
[BlackElo "2206"]
[TimeControl "180+1"]
[EndTime "9:25:54 PDT"]
[Termination "JaackCamel won on time"]

1. e4 {[%clk 0:03:00.9]} 1... e6 {[%clk 0:02:58.7]} 2. d4 {[%clk 0:02:59.3]}
2... d5 {[%clk 0:02:57.6]} 3. e5 {[%clk 0:02:58.3]} 3... c5 {[%clk 0:02:57]} 4.
c3 {[%clk 0:02:57.8]} 4... Nc6 {[%clk 0:02:56.3]} 5. Nf3 {[%clk 0:02:56.9]} 5...
Qb6 {[%clk 0:02:55.6]} 6. a3 {[%clk 0:02:56.6]} 6... Nh6 {[%clk 0:02:54.9]} 7.
b4 {[%clk 0:02:52.5]} 7... cxd4 {[%clk 0:02:54.2]} 8. cxd4 {[%clk 0:02:53.4]}
8... Nf5 {[%clk 0:02:50.7]} 9. Bb2 {[%clk 0:02:53.8]} 9... Bd7 {[%clk
0:02:49.4]} 10. g4 {[%clk 0:02:38.7]} 10... Nfe7 {[%clk 0:02:48.7]} 11. Bd3
{[%clk 0:02:33.2]} 11... Rc8 {[%clk 0:02:41.6]} 12. Nbd2 {[%clk 0:02:20.9]}
12... Na5 {[%clk 0:02:34.3]} 13. Nb3 {[%clk 0:01:23.2]} 13... Nc4 {[%clk
0:02:30.8]} 14. Qe2 {[%clk 0:01:12]} 14... Ng6 {[%clk 0:02:23.4]} 15. Bxc4
{[%clk 0:00:57.4]} 15... dxc4 {[%clk 0:02:19.8]} 16. Nc5 {[%clk 0:00:58]} 16...
Bc6 {[%clk 0:02:02.7]} 17. Rg1 {[%clk 0:00:38.5]} 17... Nf4 {[%clk 0:01:51]} 18.
Qe3 {[%clk 0:00:25.4]} 18... Nd5 {[%clk 0:01:35.7]} 19. Qg5 {[%clk 0:00:23.9]}
19... a5 {[%clk 0:01:17.8]} 20. Bc1 {[%clk 0:00:06.3]} 20... axb4 {[%clk
0:01:15.9]} 21. axb4 {[%clk 0:00:07.2]} 21... Qxb4+ {[%clk 0:01:11.5]} 22. Kf1
{[%clk 0:00:06.8]} 22... c3 {[%clk 0:01:07.4]} 23. Qh5 {[%clk 0:00:03.3]} 23...
Bxc5 {[%clk 0:01:00.7]} 24. dxc5 {[%clk 0:00:02.1]} 24... O-O {[%clk 0:00:50.2]}
25. Ng5 {[%clk 0:00:01]} 25... Qc4+ {[%clk 0:00:44.1]} 0-1

[Event "Early-Titled-Tuesday-Blitz-March-12-2024"]
[Site "Chess.com"]
[Date "2024.03.12"]
[Round "8"]
[White "RebelJohnny"]
[Black "Yan_Dyomin2010"]
[Result "0-1"]
[WhiteElo "2534"]
[BlackElo "2723"]
[TimeControl "180+1"]
[EndTime "9:26:01 PDT"]
[Termination "Yan_Dyomin2010 won on time"]

1. e4 {[%clk 0:03:00.9]} 1... c5 {[%clk 0:03:00]} 2. Nf3 {[%clk 0:03:01.3]} 2...
Nc6 {[%clk 0:03:00]} 3. d4 {[%clk 0:03:01.8]} 3... cxd4 {[%clk 0:03:00.9]} 4.
Nxd4 {[%clk 0:03:02.7]} 4... g6 {[%clk 0:03:01.5]} 5. Nc3 {[%clk 0:03:03]} 5...
Bg7 {[%clk 0:03:01.5]} 6. Be3 {[%clk 0:03:03.6]} 6... Nf6 {[%clk 0:03:01]} 7.
Bc4 {[%clk 0:03:03.3]} 7... O-O {[%clk 0:02:59.1]} 8. Bb3 {[%clk 0:03:03.4]}
8... d6 {[%clk 0:02:58.9]} 9. f3 {[%clk 0:03:03.4]} 9... Nxd4 {[%clk 0:02:59.2]}
10. Bxd4 {[%clk 0:03:03.5]} 10... Be6 {[%clk 0:02:59.8]} 11. Qd2 {[%clk
0:02:55.4]} 11... Qa5 {[%clk 0:02:56.6]} 12. O-O-O {[%clk 0:02:55.6]} 12... Rac8
{[%clk 0:02:53.4]} 13. Kb1 {[%clk 0:02:27.7]} 13... Bxb3 {[%clk 0:02:50.2]} 14.
cxb3 {[%clk 0:02:25.5]} 14... Rfd8 {[%clk 0:02:35]} 15. Bxf6 {[%clk 0:01:55.1]}
15... Bxf6 {[%clk 0:02:34.6]} 16. Nd5 {[%clk 0:01:55]} 16... Qxd2 {[%clk
0:02:35.5]} 17. Nxf6+ {[%clk 0:01:55.1]} 17... Kg7 {[%clk 0:02:36.2]} 18. Nh5+
{[%clk 0:01:51.9]} 18... Kh6 {[%clk 0:02:32.3]} 19. Rxd2 {[%clk 0:01:52.2]}
19... Kxh5 {[%clk 0:02:32.9]} 20. Rhd1 {[%clk 0:01:50.8]} 20... Rc5 {[%clk
0:02:27.3]} 21. b4 {[%clk 0:01:49.4]} 21... Rb5 {[%clk 0:02:27.1]} 22. Rd4
{[%clk 0:01:41.2]} 22... Kh6 {[%clk 0:02:24.4]} 23. g4 {[%clk 0:01:38.2]} 23...
Kg7 {[%clk 0:02:21]} 24. a4 {[%clk 0:01:31.6]} 24... Rb6 {[%clk 0:02:14.4]} 25.
b5 {[%clk 0:01:19.4]} 25... a6 {[%clk 0:02:02.3]} 26. Rb4 {[%clk 0:01:15.2]}
26... Ra8 {[%clk 0:01:58.9]} 27. b3 {[%clk 0:01:07.9]} 27... axb5 {[%clk
0:01:55.3]} 28. Rd5 {[%clk 0:01:06.7]} 28... Ra5 {[%clk 0:01:55.2]} 29. Kb2
{[%clk 0:00:28.9]} 29... Kf6 {[%clk 0:01:40.2]} 30. Kc3 {[%clk 0:00:14.7]} 30...
Ke6 {[%clk 0:01:39]} 31. Kd4 {[%clk 0:00:10.7]} 31... Kd7 {[%clk 0:01:36.8]} 32.
e5 {[%clk 0:00:06.6]} 32... e6 {[%clk 0:01:29.2]} 33. Rdxb5 {[%clk 0:00:04.2]}
33... Rbxb5 {[%clk 0:01:29.3]} 34. Rxb5 {[%clk 0:00:02.6]} 34... Rxb5 {[%clk
0:01:28.3]} 35. axb5 {[%clk 0:00:03.5]} 35... g5 {[%clk 0:01:17.8]} 36. b4
{[%clk 0:00:01.8]} 36... h6 {[%clk 0:01:05.8]} 0-1

[Event "Early-Titled-Tuesday-Blitz-March-12-2024"]
[Site "Chess.com"]
[Date "2024.03.12"]
[Round "8"]
[White "Actuary44"]
[Black "awesomevishesh"]
[Result "0-1"]
[WhiteElo "2523"]
[BlackElo "2638"]
[TimeControl "180+1"]
[EndTime "9:26:08 PDT"]
[Termination "awesomevishesh won by resignation"]

1. e4 {[%clk 0:03:00.9]} 1... g6 {[%clk 0:02:57.6]} 2. d4 {[%clk 0:03:01]} 2...
Bg7 {[%clk 0:02:57.3]} 3. Nc3 {[%clk 0:03:01.6]} 3... d6 {[%clk 0:02:57.1]} 4.
Bg5 {[%clk 0:03:01.4]} 4... h6 {[%clk 0:02:55.1]} 5. Bh4 {[%clk 0:03:01.3]} 5...
a6 {[%clk 0:02:54.5]} 6. Qd2 {[%clk 0:03:01.4]} 6... b5 {[%clk 0:02:53.1]} 7.
O-O-O {[%clk 0:03:00.9]} 7... Nd7 {[%clk 0:02:38.7]} 8. f4 {[%clk 0:02:56.5]}
8... c6 {[%clk 0:02:32.5]} 9. e5 {[%clk 0:02:53.4]} 9... d5 {[%clk 0:02:21.6]}
10. e6 {[%clk 0:02:43.3]} 10... fxe6 {[%clk 0:02:20.4]} 11. Bd3 {[%clk
0:02:42.7]} 11... Nf8 {[%clk 0:02:19.3]} 12. Nf3 {[%clk 0:02:43.1]} 12... Bd7
{[%clk 0:02:10.1]} 13. Ne5 {[%clk 0:02:42.9]} 13... Qb6 {[%clk 0:02:01.3]} 14.
Ne2 {[%clk 0:02:27.7]} 14... Nf6 {[%clk 0:01:53.1]} 15. g4 {[%clk 0:02:03.4]}
15... c5 {[%clk 0:01:25.6]} 16. dxc5 {[%clk 0:01:54.4]} 16... Qxc5 {[%clk
0:01:25.4]} 17. g5 {[%clk 0:01:36.9]} 17... hxg5 {[%clk 0:01:24.6]} 18. fxg5
{[%clk 0:01:37.7]} 18... Rxh4 {[%clk 0:01:18.5]} 19. gxf6 {[%clk 0:01:38]} 19...
exf6 {[%clk 0:01:17.3]} 20. Nxg6 {[%clk 0:01:37.2]} 20... Nxg6 {[%clk
0:01:16.7]} 21. Bxg6+ {[%clk 0:01:38.1]} 21... Ke7 {[%clk 0:01:16.4]} 22. Kb1
{[%clk 0:01:30.4]} 22... Bh6 {[%clk 0:01:04.3]} 23. Qd3 {[%clk 0:01:24.9]} 23...
Qe3 {[%clk 0:01:03.7]} 24. Qxe3 {[%clk 0:00:56.8]} 24... Bxe3 {[%clk 0:01:03.4]}
25. Ng3 {[%clk 0:00:53.7]} 25... f5 {[%clk 0:00:51.8]} 26. Bxf5 {[%clk
0:00:48.9]} 26... exf5 {[%clk 0:00:47.9]} 27. Rxd5 {[%clk 0:00:44.6]} 27... f4
{[%clk 0:00:42.2]} 28. Rhd1 {[%clk 0:00:33.3]} 28... Be6 {[%clk 0:00:41.6]} 29.
Nf5+ {[%clk 0:00:22.4]} 29... Bxf5 {[%clk 0:00:40.3]} 30. Rxf5 {[%clk
0:00:23.3]} 30... Rxh2 {[%clk 0:00:37.6]} 31. Re1 {[%clk 0:00:21]} 31... Rf8
{[%clk 0:00:33.2]} 0-1